bitfinex-derivatives/quotes_SOLF0:USTF0_20250625
["timestamp","ask_amount","ask_price","bid_price","bid_amount"]
[1750860209069,586.94,147.25,147.16,7.0414187]
[1750860209263,37.68,147.26,147.2,7.0414187]
[1750860209670,37.68,147.29,147.22,7.0414187]
[1750860209865,37.68,147.29,147.24,7.0414187]
[1750860210566,6.7854,147.3,147.24,7.0414187]
[1750860210773,6.7854,147.3,147.26,6.7867]
[1750860210969,624.62,147.32,147.26,6.7867]
[1750860211265,624.62,147.32,147.22,37.68]
[1750860211266,7.0414187,147.31,147.22,44.7214187]
[1750860211475,7.0414187,147.29,147.2,8.39833114]
[1750860211771,7.0414187,147.27,147.19,108.07833114]
[1750860211963,44.7214187,147.27,147.21,6.7889]
[1750860212864,44.7214187,147.27,147.18,15.43974984]
[1750860213458,6.7872,147.26,147.18,15.43974984]
[1750860213666,44.7214187,147.27,147.18,15.43974984]
[1750860214166,6.7875,147.25,147.18,15.43974984]
[1750860214366,37.68,147.27,147.2,7.0414187]
[1750860214668,44.7214187,147.3,147.2,44.7214187]
[1750860214864,37.68,147.29,147.2,53.11974984]
[1750860215064,44.4657,147.29,147.22,7.0414187]
[1750860215466,37.68,147.29,147.22,7.0414187]
[1750860215667,6.7849,147.31,147.27,6.7862]
[1750860215974,44.7214187,147.32,147.23,64.4372]
[1750860216174,6.7853,147.3,147.23,64.4372]
[1750860216375,7.0414187,147.3,147.23,64.4372]
[1750860216575,7.0414187,147.3,147.2,44.7214187]
[1750860216769,6.7867,147.27,147.23,6.788]
[1750860216967,44.7014187,147.28,147.18,47.1386187]
[1750860217169,6.7875,147.25,147.22,6.7887]
[1750860217476,6.7875,147.25,147.18,47.1386187]
[1750860217778,6.7883,147.23,147.2,6.7894]
[1750860218072,7.0414187,147.24,147.2,6.7894]
[1750860218274,7.0414187,147.24,147.18,40.0972]
[1750860218970,13.8295187,147.24,147.2,6.7894]
[1750860219174,13.8295187,147.24,147.18,40.0972]
[1750860220570,44.7014187,147.26,147.18,40.0972]
[1750860220778,44.7014187,147.29,147.18,47.1386187]
[1750860221177,44.7014187,147.29,147.24,6.7878]
[1750860221373,44.7014187,147.29,147.18,47.1386187]
[1750860221577,6.7865,147.28,147.25,6.7874]
[1750860222480,44.7014187,147.29,147.2,7.0414187]
[1750860223075,6.7863,147.28,147.25,6.7871]
[1750860223274,44.7014187,147.29,147.21,62.0]
[1750860223471,37.66,147.29,147.22,44.7014187]
[1750860223683,44.4459,147.29,147.26,6.7868]
[1750860223871,37.66,147.29,147.22,44.7014187]
[1750860224578,37.66,147.32,147.22,44.7014187]
[1750860224775,6.7848,147.31,147.22,44.7014187]
[1750860225588,44.4444,147.32,147.24,7.0414187]
[1750860225775,44.4444,147.32,147.25,2.4392]
[1750860226284,6.7847,147.31,147.25,4.8376]
[1750860226975,6.7847,147.31,147.28,6.7857]
[1750860227588,7.0414187,147.31,147.25,2.4392]
[1750860227978,6.7853,147.3,147.25,2.4392]
[1750860228278,37.66,147.32,147.25,2.4392]
[1750860228673,37.66,147.32,147.25,9.4806187]
[1750860229080,37.66,147.32,147.31,6.7846]
[1750860229281,42.3202,147.35,147.27,7.0414187]
[1750860229471,40.0946,147.35,147.27,7.0414187]
[1750860229675,6.784,147.33,147.27,7.0414187]
[1750860229871,40.0946,147.35,147.26,42.137]
[1750860230082,7.0414187,147.34,147.26,42.137]
[1750860230278,7.0414187,147.3,147.22,37.66]
[1750860230585,44.7014187,147.3,147.21,44.7014187]
[1750860230782,44.7014187,147.3,147.21,106.7014187]
[1750860230986,6.7858,147.29,147.26,6.7867]
[1750860231285,44.7014187,147.3,147.21,44.7014187]
[1750860231989,37.66,147.3,147.23,7.0414187]
[1750860232282,37.66,147.3,147.24,4.8248]
[1750860232492,37.66,147.3,147.29,6.7855]
[1750860232694,37.66,147.33,147.29,6.7855]
[1750860232990,7.0414187,147.32,147.24,4.8248]
[1750860233182,7.0414187,147.31,147.24,4.8248]
[1750860233781,44.7014187,147.33,147.24,4.8248]
[1750860234183,44.7014187,147.33,147.24,66.8248]
[1750860234486,6.7853,147.3,147.27,6.7861]
[1750860234991,6.7853,147.3,147.24,4.8248]
[1750860235289,6.7853,147.3,147.27,6.7862]
[1750860236189,6.7853,147.3,147.28,6.7859]
[1750860236791,44.7014187,147.33,147.29,6.7855]
[1750860237586,44.7014187,147.33,147.28,6.7857]
[1750860237787,44.7014187,147.33,147.25,62.0]
[1750860237985,6.7846,147.31,147.25,62.0]
[1750860238291,44.7014187,147.33,147.25,62.0]
[1750860238585,37.66,147.33,147.25,62.0]
[1750860238786,37.66,147.33,147.25,71.4613187]
[1750860239088,6.7844,147.32,147.29,6.7853]
[1750860239282,37.66,147.33,147.25,71.4613187]
[1750860239591,37.66,147.33,147.3,6.785]
[1750860239888,37.66,147.33,147.25,109.0213187]
[1750860240197,6.7844,147.32,147.29,6.7853]
[1750860240380,7.0414187,147.32,147.25,39.9799]
[1750860240781,6.785,147.31,147.25,2.4199]
[1750860240982,7.0414187,147.32,147.25,2.4199]
[1750860241188,6.7851,147.3,147.27,6.7861]
[1750860241494,7.0414187,147.32,147.24,4.8248]
[1750860241696,6.7877,147.25,147.22,6.7885]
[1750860241890,44.6014187,147.25,147.17,37.56]
[1750860242188,44.3477,147.25,147.21,6.789]
[1750860242382,7.0414187,147.24,147.17,37.56]
[1750860242584,7.0414187,147.24,147.16,4.702]
[1750860242778,37.56,147.25,147.16,4.702]
[1750860242779,7.0414187,147.2,147.16,9.0917]
[1750860243289,6.7912,147.17,147.14,6.7922]
[1750860243483,7.0414187,147.2,147.12,2.4017]
[1750860244379,37.56,147.21,147.13,7.0414187]
[1750860245278,44.6014187,147.24,147.15,7.0414187]
[1750860245484,7.0414187,147.18,147.12,2.4017]
[1750860246096,37.56,147.19,147.12,2.4017]
[1750860246792,44.6014187,147.22,147.13,7.0414187]
[1750860247091,37.56,147.22,147.14,37.56]
[1750860247291,37.56,147.22,147.21,6.7892]
[1750860247589,7.0414187,147.24,147.21,6.7892]
[1750860247990,7.0414187,147.24,147.22,6.7887]
[1750860248391,13.8295187,147.24,147.17,2.2474]
[1750860248694,13.8295187,147.24,147.2,6.7894]
[1750860249099,7.0414187,147.24,147.21,6.7891]
[1750860249396,7.0414187,147.24,147.17,2.2474]
[1750860250304,13.8293187,147.24,147.21,6.7889]
[1750860250493,7.0414187,147.24,147.17,2.2474]
[1750860250695,37.56,147.25,147.17,2.2474]
[1750860250896,7.0414187,147.23,147.17,2.2474]
[1750860252893,44.6014187,147.25,147.17,2.2474]
[1750860253187,7.0414187,147.23,147.17,2.2474]
[1750860253390,13.8298187,147.23,147.2,6.7892]
[1750860253611,7.0414187,147.23,147.17,2.2474]
[1750860253786,37.56,147.25,147.18,6.7903]
[1750860253787,13.8307187,147.21,147.18,6.7903]
[1750860253991,51.4107187,147.21,147.18,6.7903]
[1750860254294,37.58,147.21,147.14,37.56]
[1750860254494,37.58,147.21,147.15,7.0414187]
[1750860254694,37.58,147.24,147.15,7.0414187]
[1750860255400,44.6214187,147.25,147.15,7.0414187]
[1750860255903,6.7888,147.22,147.19,6.7899]
[1750860256095,7.0414187,147.23,147.14,51.1448]
[1750860256504,6.7888,147.22,147.19,6.7899]
[1750860256898,7.0414187,147.23,147.14,37.56]
[1750860257090,7.0414187,147.23,147.19,6.7899]
[1750860257295,7.0414187,147.21,147.14,37.56]
[1750860257498,13.8316187,147.19,147.16,6.7913]
[1750860257902,7.0414187,147.19,147.13,2.3537]
[1750860258291,6.7909,147.18,147.15,6.7916]
[1750860258495,7.0414187,147.19,147.13,2.3537]
[1750860258902,37.58,147.2,147.13,2.3537]
[1750860259205,7.0414187,147.15,147.08,50.2156738]
[1750860259507,7.0414187,147.15,147.13,6.7926]
[1750860261498,13.8334187,147.15,147.12,6.7932]
[1750860261705,7.0414187,147.15,147.08,37.58]
[1750860262105,6.7927,147.14,147.11,6.7936]
[1750860262701,7.0414187,147.15,147.07,4.6397]
[1750860262702,6.793,147.13,147.1,6.7941]
[1750860263004,7.0414187,147.13,147.07,2.3226]
[1750860263192,13.8346187,147.13,147.1,6.7941]
[1750860263601,7.0414187,147.13,147.1,6.7941]
[1750860263801,7.0414187,147.13,147.07,2.3226]
[1750860263999,37.58,147.12,147.07,2.3226]
[1750860264200,44.3736,147.12,147.09,6.7945]
[1750860264400,37.58,147.12,147.07,2.3226]
[1750860265405,37.58,147.12,147.11,6.7938]
[1750860265603,44.5414187,147.15,147.11,6.7938]
[1750860266301,6.7925,147.14,147.11,6.7938]
[1750860267003,44.5414187,147.15,147.07,2.3226]
[1750860267208,7.0414187,147.16,147.07,9.3640187]
[1750860267407,37.5,147.21,147.13,7.0414187]
[1750860267611,37.5,147.21,147.19,6.7899]
[1750860267803,37.5,147.21,147.14,6.7559]
[1750860267999,6.7904,147.19,147.15,6.7918]
[1750860268200,7.0414187,147.2,147.14,4.5547]
[1750860268400,7.0414187,147.2,147.12,37.5]
[1750860268707,7.0414187,147.2,147.14,6.7921]
[1750860269008,7.0414187,147.2,147.13,6.7926]
[1750860269606,6.7916,147.16,147.13,6.7926]
[1750860269808,6.7916,147.16,147.14,6.7924]
[1750860270007,37.5,147.17,147.14,6.7924]
[1750860270217,44.2914,147.17,147.14,6.7924]
[1750860270407,37.5,147.17,147.11,69.0414187]
[1750860270812,6.7904,147.19,147.11,69.0414187]
[1750860271111,6.7904,147.19,147.16,6.7912]
[1750860271409,44.2899,147.2,147.13,7.0414187]
[1750860271600,37.5,147.2,147.15,6.792]
[1750860271908,6.7905,147.19,147.13,7.0414187]
[1750860272112,37.5,147.2,147.1,4.4882]
[1750860272414,44.5414187,147.2,147.12,7.0414187]
[1750860272912,6.7914,147.17,147.14,6.7922]
[1750860273208,44.5414187,147.2,147.12,7.0414187]
[1750860273411,6.7912,147.17,147.14,6.7923]
[1750860274207,7.0414187,147.18,147.1,4.4882]
[1750860274408,7.0414187,147.16,147.1,2.2435]
[1750860274608,44.5414187,147.16,147.1,2.2435]
[1750860274807,6.7928,147.14,147.11,6.7936]
[1750860275013,44.5414187,147.16,147.1,2.2435]
[1750860275214,44.5414187,147.16,147.08,37.5]
[1750860275415,44.5414187,147.16,147.06,2.266]
[1750860275616,7.0414187,147.14,147.06,2.266]
[1750860275811,7.0414187,147.14,147.1,6.7939]
[1750860276018,37.5,147.16,147.09,7.0414187]
[1750860276311,6.7928,147.14,147.11,6.7936]
[1750860276617,37.5,147.16,147.09,7.0414187]
[1750860276910,6.7924,147.15,147.12,6.7931]
[1750860277517,44.2918,147.16,147.13,6.7926]
[1750860278012,44.2918,147.16,147.14,6.7924]
[1750860278013,37.5,147.16,147.14,6.7924]
[1750860278212,37.5,147.19,147.11,7.0414187]
[1750860278407,37.5,147.19,147.12,2.2413]
[1750860278603,6.7899,147.2,147.13,44.5414187]
[1750860279010,6.7904,147.19,147.16,6.7911]
[1750860279212,624.08,147.22,147.13,44.5414187]
[1750860279520,6.791,147.18,147.15,6.7918]
[1750860279819,37.5,147.18,147.12,2.2413]
[1750860280209,6.7919,147.16,147.13,6.7927]
[1750860280408,37.5,147.18,147.13,6.7927]
[1750860280918,6.792,147.16,147.13,6.7927]
[1750860281118,37.5,147.18,147.12,2.2413]
[1750860281620,6.7914,147.17,147.14,6.7922]
[1750860281820,37.5,147.18,147.13,7.0414187]
[1750860282120,37.5,147.24,147.17,7.0414187]
[1750860282306,37.5,147.24,147.19,7.0414187]
[1750860282514,37.5,147.27,147.19,7.0414187]
[1750860282812,6.7872,147.26,147.23,6.788]
[1750860283121,37.5,147.27,147.23,6.788]
[1750860283310,6.7872,147.26,147.24,6.7878]
[1750860283618,37.5,147.27,147.21,7.0414187]
[1750860283821,6.7869,147.26,147.23,6.7881]
[1750860284019,37.5,147.27,147.21,7.0414187]
[1750860284421,37.5,147.27,147.24,6.7878]
[1750860284920,37.5,147.27,147.21,7.0414187]
[1750860285110,37.5,147.27,147.24,6.7876]
[1750860285517,44.2867,147.27,147.24,6.7876]
[1750860286121,44.2867,147.27,147.25,6.7873]
[1750860286421,44.2867,147.27,147.21,69.0414187]
[1750860286617,44.2867,147.27,147.24,6.7876]
[1750860286817,6.787,147.26,147.24,6.7876]
[1750860287118,37.5,147.27,147.21,69.0414187]
[1750860287713,37.5,147.27,147.18,19.3572738]
[1750860287912,44.5414187,147.27,147.18,13.7630187]
[1750860288416,44.5414187,147.27,147.23,6.7881]
[1750860288616,44.5414187,147.27,147.18,13.7630187]
[1750860289207,37.5,147.27,147.18,13.7630187]
[1750860289408,37.5,147.27,147.2,7.0414187]
[1750860289615,44.2865,147.27,147.24,6.7875]
[1750860290516,44.2865,147.27,147.25,6.7873]
[1750860290719,44.2865,147.27,147.2,69.0414187]
[1750860290919,37.5,147.27,147.2,69.0414187]
[1750860291224,44.5414187,147.27,147.18,13.7630187]
[1750860291429,6.7876,147.25,147.18,13.7630187]
[1750860291614,44.5414187,147.27,147.18,13.7630187]
[1750860291814,6.7873,147.26,147.23,6.7882]
[1750860292121,44.5414187,147.27,147.18,13.7630187]
[1750860292421,6.7883,147.23,147.18,4.4929]
[1750860292812,6.7881,147.24,147.21,6.789]
[1750860293426,6.7879,147.24,147.18,4.4929]
[1750860293620,37.5,147.27,147.18,11.5343187]
[1750860293821,37.5,147.27,147.25,6.7872]
[1750860294225,37.5,147.27,147.2,7.0414187]
[1750860294226,37.5,147.27,147.21,62.0]
[1750860294426,589.0294,147.29,147.22,7.0414187]
[1750860294427,586.8,147.29,147.22,7.0414187]
[1750860294725,46.8883187,147.3,147.22,7.0414187]
[1750860294726,44.5414187,147.3,147.22,7.0414187]
[1750860295023,2.3961041,147.35,147.22,7.0414187]
[1750860295222,591.1059,147.36,147.27,7.0414187]
[1750860295223,2.281,147.36,147.27,7.0414187]
[1750860295415,6.7839,147.33,147.3,6.7848]
[1750860295614,2.281,147.36,147.28,2.4034]
[1750860295615,7.0414187,147.35,147.28,2.4034]
[1750860296017,2.3964432,147.36,147.28,2.4034]
[1750860296217,27.3693187,147.5,147.31,7.0414187]
[1750860296218,39.701,147.4,147.31,7.0414187]
[1750860296425,6.7817,147.38,147.34,6.7828]
[1750860296620,39.701,147.4,147.31,44.4614187]
[1750860296820,7.0414187,147.39,147.31,37.42]
[1750860297028,7.0414187,147.37,147.28,39.8234]
[1750860297212,7.0414187,147.35,147.28,39.8234]
[1750860297414,6.7843,147.32,147.29,6.7854]
[1750860297620,44.4614187,147.35,147.28,39.8234]
[1750860298018,6.784,147.33,147.3,6.7848]
[1750860298221,44.4614187,147.35,147.3,6.7848]
[1750860298628,37.42,147.35,147.28,39.8234]
[1750860299221,37.42,147.35,147.32,6.784]
[1750860299425,37.42,147.35,147.28,39.8234]
[1750860299627,44.2031,147.35,147.32,6.7841]
[1750860300322,44.4614187,147.39,147.29,7.0414187]
[1750860300522,44.4614187,147.39,147.31,7.0414187]
[1750860300925,6.7817,147.38,147.35,6.7825]
[1750860301122,37.42,147.39,147.35,6.7825]
[1750860301328,37.42,147.39,147.36,6.7823]
[1750860301527,37.42,147.39,147.33,7.0414187]
[1750860302329,37.42,147.39,147.32,48.18567582]
[1750860302532,37.42,147.39,147.32,110.18567582]
[1750860303019,6.7805,147.4,147.37,6.7815]
[1750860303219,39.7049,147.42,147.32,110.18567582]
[1750860303418,39.7049,147.42,147.35,6.7828]
[1750860303619,10.76567582,147.41,147.32,37.42]
[1750860304529,6.7821,147.37,147.34,6.783]
[1750860304729,37.4,147.38,147.29,37.4]
[1750860304940,48.16567582,147.38,147.29,37.4]
[1750860305126,6.783,147.35,147.32,6.784]
[1750860305321,48.16567582,147.38,147.29,37.4]
[1750860306134,6.7832,147.35,147.31,6.7844]
[1750860306338,6.7832,147.35,147.29,37.4]
[1750860306339,37.4,147.34,147.28,2.4034]
[1750860306632,37.4,147.34,147.23,99.4]
[1750860306828,37.4,147.34,147.23,106.3905]
[1750860307726,6.7837,147.33,147.3,6.7848]
[1750860308031,10.76567582,147.33,147.23,106.3905]
[1750860308531,10.76567582,147.32,147.23,44.3905]
[1750860308831,48.16567582,147.34,147.23,44.3905]
[1750860309233,6.7847,147.31,147.23,44.3905]
[1750860309630,6.7849,147.31,147.28,6.7859]
[1750860311132,6.7849,147.31,147.29,6.7855]
[1750860311336,6.7849,147.31,147.23,44.3905]
[1750860311635,6.7849,147.31,147.28,6.7856]
[1750860312436,6.7849,147.31,147.29,6.7855]
[1750860312739,48.16567582,147.34,147.23,44.3905]
[1750860312938,48.16567582,147.34,147.31,6.7845]
[1750860313237,37.4,147.34,147.27,37.4]
[1750860313430,39.6849,147.37,147.28,10.76567582]
[1750860313633,37.4,147.37,147.28,10.76567582]
[1750860313934,17.54627582,147.4,147.29,2.2981]
[1750860313935,48.16567582,147.4,147.29,2.2981]
[1750860314135,37.4,147.4,147.37,6.7817]
[1750860314337,37.4,147.4,147.31,48.16567582]
[1750860314538,37.4,147.4,147.37,6.7817]
[1750860314740,37.4,147.4,147.32,62.0]
[1750860315036,37.4,147.43,147.4,6.7804]
[1750860315432,37.4,147.43,147.35,37.4]
[1750860316237,10.76567582,147.41,147.32,37.4]
[1750860316642,10.76567582,147.38,147.3,2.3944]
[1750860316939,37.4,147.37,147.3,2.3944]
[1750860317241,37.4,147.37,147.32,6.7837]
[1750860317842,37.4,147.37,147.3,2.3944]
[1750860318038,6.7832,147.35,147.3,2.3944]
[1750860318236,37.4,147.37,147.3,2.3944]
[1750860319341,6.7832,147.35,147.3,9.1792]
[1750860319533,37.4,147.37,147.3,9.1792]
[1750860319737,6.7832,147.35,147.3,9.1792]
[1750860320040,37.4,147.37,147.31,6.7845]
[1750860320443,6.7836,147.34,147.3,9.1792]
[1750860321045,37.4,147.37,147.3,9.1792]
[1750860321341,6.7842,147.32,147.3,9.1792]
[1750860321648,37.4,147.33,147.26,37.4]
[1750860322040,6.7851,147.3,147.26,37.4]
[1750860322543,44.43493872,147.33,147.26,37.4]
[1750860322747,37.4,147.33,147.26,44.43493872]
[1750860322931,7.03493872,147.35,147.26,44.43493872]
[1750860323130,2.2056,147.36,147.28,7.03493872]
[1750860323131,37.4,147.36,147.28,7.03493872]
[1750860323343,6.7828,147.35,147.32,6.7839]
[1750860323738,6.7828,147.35,147.29,2.2857]
[1750860323937,37.4,147.36,147.29,11.69043872]
[1750860324245,37.4,147.36,147.3,37.4]
[1750860324738,37.4,147.41,147.33,7.03493872]
[1750860325540,6.7812,147.39,147.36,6.7821]
[1750860326243,11.59253343,147.39,147.37,6.7818]
[1750860326644,11.84627215,147.39,147.31,9.40843872]
[1750860326849,4.81133343,147.38,147.3,37.4]
[1750860327042,42.17133343,147.37,147.3,37.4]
[1750860327347,37.36,147.37,147.32,6.7839]
[1750860327545,37.36,147.37,147.3,37.4]
[1750860327546,4.81133343,147.36,147.3,37.4]
[1750860327744,37.36,147.37,147.3,37.4]
[1750860327940,42.1734694,147.37,147.33,6.7835]
[1750860328247,37.36,147.37,147.3,37.4]
[1750860328548,4.81347623,147.36,147.29,2.2857]
[1750860328734,4.81347623,147.35,147.29,2.2857]
[1750860328936,44.39493872,147.37,147.29,2.2857]
[1750860328937,6.7835,147.34,147.31,6.7842]
[1750860329333,4.81347623,147.35,147.31,6.7842]
[1750860329539,2.41158948,147.36,147.31,6.7842]
[1750860329740,4.83401799,147.35,147.32,6.7838]
[1750860329939,2.41158948,147.36,147.32,6.7838]
[1750860330144,4.83753975,147.35,147.32,6.7838]
[1750860330344,2.41158948,147.36,147.31,6.7844]
[1750860330644,6.7837,147.34,147.31,6.7844]
[1750860330840,4.83750481,147.34,147.29,2.2857]
[1750860331042,49.2130891,147.33,147.26,2.3137]
[1750860331238,6.7844,147.32,147.26,2.3137]
[1750860331441,44.37493872,147.33,147.26,2.3137]
[1750860331846,6.785,147.31,147.26,2.3137]
[1750860332538,44.37493872,147.33,147.29,6.7852]
[1750860332747,44.37493872,147.33,147.26,2.3137]
[1750860332949,6.7854,147.3,147.24,37.34]
[1750860333142,44.37493872,147.33,147.24,37.34]
[1750860333541,6.7849,147.31,147.24,37.34]
[1750860333748,44.37493872,147.33,147.28,6.7857]
[1750860333943,44.37493872,147.33,147.24,37.34]
[1750860334148,6.7855,147.3,147.24,37.34]
[1750860334344,6.7855,147.3,147.27,6.7863]
[1750860334745,6.7849,147.31,147.28,6.7856]
[1750860335349,2.41071844,147.32,147.28,6.7856]
[1750860335548,6.7847,147.31,147.29,6.7853]
[1750860335851,37.34,147.33,147.25,7.03493872]
[1750860336037,37.34,147.33,147.3,6.7848]
[1750860336237,39.7528405,147.33,147.3,6.7848]
[1750860336437,37.34,147.33,147.3,6.7848]
[1750860336647,39.7528405,147.33,147.3,6.7848]
[1750860336847,44.1241,147.33,147.3,6.7848]
[1750860337048,39.7528405,147.33,147.29,6.7854]
[1750860337254,37.34,147.33,147.29,6.7854]
[1750860337447,6.7845,147.32,147.29,6.7854]
[1750860337654,6.7845,147.32,147.3,6.785]
[1750860337947,46.5368405,147.33,147.3,6.785]
[1750860338153,2.4128405,147.32,147.3,6.785]
[1750860338850,44.1239,147.33,147.31,6.7846]
[1750860339146,37.34,147.33,147.27,7.03493872]
[1750860339451,44.1239,147.33,147.25,19.67061252]
[1750860339757,37.34,147.33,147.25,19.67061252]
[1750860339942,39.75128073,147.33,147.25,19.67061252]
[1750860340145,37.34,147.33,147.27,7.03493872]
[1750860340654,44.1237,147.33,147.31,6.7845]
[1750860341158,44.1237,147.33,147.3,6.7849]
[1750860341946,46.53487908,147.33,147.3,6.7849]
[1750860342145,37.34,147.33,147.31,6.7845]
[1750860342345,37.34,147.33,147.27,7.03493872]
[1750860342752,44.1238,147.33,147.31,6.7844]
[1750860342949,37.34,147.33,147.27,7.03493872]
[1750860343147,39.75107151,147.33,147.27,7.03493872]
[1750860343348,6.7842,147.32,147.3,6.7849]
[1750860343551,44.37493872,147.33,147.25,12.6356738]
[1750860343857,6.7848,147.31,147.23,22.00711252]
[1750860344347,2.41121343,147.32,147.25,7.03493872]
[1750860344547,37.34,147.33,147.27,7.03493872]
[1750860345052,6.7842,147.32,147.26,37.36]
[1750860345552,6.7847,147.31,147.29,6.7853]
[1750860345740,37.34,147.33,147.26,37.36]
[1750860345945,39.75433419,147.33,147.3,6.7848]
[1750860346138,37.34,147.33,147.3,6.7848]
[1750860346344,39.75433419,147.33,147.3,6.7848]
[1750860346543,37.34,147.33,147.3,6.7848]
[1750860346744,39.75433419,147.33,147.26,99.36]
[1750860346955,37.34,147.33,147.26,106.39493872]
[1750860347257,6.7842,147.32,147.29,6.7853]
[1750860347449,6.7842,147.32,147.26,106.39493872]
[1750860348055,37.34,147.33,147.28,7.03493872]
[1750860348255,39.77538317,147.36,147.28,7.03493872]
[1750860348439,9.19848317,147.35,147.32,6.7838]
[1750860348643,2.41538317,147.34,147.29,2.4296]
[1750860349053,44.1424,147.36,147.29,2.4296]
[1750860349352,2.41380999,147.35,147.29,2.4296]
[1750860349653,2.41380999,147.35,147.32,6.7839]
[1750860349654,6.7831,147.35,147.32,6.7839]
[1750860350149,6.7839,147.33,147.29,2.4296]
[1750860350451,2.41449074,147.34,147.29,2.4296]
[1750860350643,2.41453764,147.33,147.29,6.7853]
[1750860350843,9.19883764,147.32,147.29,6.7853]
[1750860351043,6.7843,147.32,147.26,44.39493872]
[1750860351461,6.7843,147.32,147.26,37.36]
[1750860351650,6.7846,147.31,147.29,6.7853]
[1750860351851,2.41492322,147.34,147.29,6.7853]
[1750860352050,2.41492322,147.33,147.29,6.7853]
[1750860352252,9.19942322,147.32,147.29,6.7853]
[1750860352455,2.41492322,147.34,147.28,6.7858]
[1750860352764,6.7855,147.3,147.24,21.91531252]
[1750860353058,37.36,147.31,147.27,6.7862]
[1750860353260,39.77501355,147.31,147.24,9.27963872]
[1750860353455,6.7853,147.3,147.27,6.7862]
[1750860353660,6.7853,147.3,147.24,71.27963872]
[1750860354151,46.56098412,147.31,147.24,71.27963872]
[1750860354352,44.1449,147.31,147.24,71.27963872]
[1750860354552,46.56098412,147.31,147.24,71.27963872]
[1750860354752,6.7853,147.3,147.28,6.7856]
[1750860355060,39.77608412,147.31,147.24,71.27963872]
[1750860355256,37.36,147.31,147.24,71.27963872]
[1750860355558,44.1449,147.31,147.28,6.7857]
[1750860356164,46.56081484,147.31,147.28,6.7857]
[1750860356457,6.7852,147.3,147.28,6.7857]
[1750860356668,7.03493872,147.29,147.23,54.5436738]
[1750860356957,7.03493872,147.29,147.23,41.908]
[1750860357153,7.03493872,147.29,147.24,6.7876]
[1750860357759,37.36,147.31,147.21,12.6356738]
[1750860357760,7.03493872,147.27,147.21,12.6356738]
[1750860357960,44.35493872,147.27,147.2,2.2418]
[1750860358154,7.03493872,147.25,147.19,12.6356738]
[1750860358459,7.03493872,147.23,147.16,12.6356738]
[1750860358658,7.03493872,147.21,147.15,12.6356738]
[1750860358963,7.03493872,147.19,147.14,2.4025]
[1750860359161,44.35493872,147.21,147.14,2.4025]
[1750860359361,37.32,147.21,147.2,6.7897]
[1750860359661,37.32,147.21,147.16,7.03493872]
[1750860360365,37.32,147.25,147.24,6.7878]
[1750860360557,37.32,147.28,147.22,7.03493872]
[1750860360757,39.72676475,147.28,147.22,7.03493872]
[1750860360955,46.51306475,147.28,147.22,7.03493872]
[1750860361171,37.32,147.28,147.22,7.03493872]
[1750860362163,44.1062,147.28,147.25,6.7871]
[1750860362568,37.32,147.28,147.21,39.6624]
[1750860362762,37.32,147.28,147.21,2.3424]
[1750860363060,7.03493872,147.27,147.18,2.3398]
[1750860363259,6.7884,147.23,147.18,2.3398]
[1750860363568,9.44139207,147.27,147.18,2.3398]
[1750860363761,7.03493872,147.27,147.18,2.3398]
[1750860364162,6.788,147.24,147.21,6.789]
[1750860364367,7.03493872,147.27,147.18,2.3398]
[1750860364565,37.32,147.28,147.19,7.03493872]
[1750860365058,6.7875,147.25,147.19,7.03493872]
[1750860365370,37.32,147.28,147.19,7.03493872]
[1750860365571,37.32,147.28,147.21,7.03493872]
[1750860365860,37.32,147.28,147.23,7.03493872]
[1750860366368,6.7858,147.29,147.26,6.7866]
[1750860366763,6.7858,147.29,147.27,6.7864]